Cogmind - Beta 15 @@@ ROGUE MODE // 2025.10.18 @ 16:08:21 Player: ExAliquo Result: Destroyed by GV-GOL(R) with Subdweller Beam Cannon Performance ------------- Evolutions (0) 0 Regions Visited (2) 400 Robots Destroyed (27) 135 Value Destroyed (534) 534 Prototype IDs (5) 100 Alien Tech Used (0) 0 Bonus (0) 0 TOTAL SCORE: 1169 Bonus ------- None Cogmind --------- Core Integrity 0/250 Matter 290/300 Energy 80/100 System Corruption 0% Temperature Cool (9) Movement Core (450) Ox8 Location -10/Subcaves Parts ------- > --- POWER (1) -------- (None) > --- PROPULSION (2) --- (None) > --- UTILITY (2) ------ Large Storage Unit Light Armor Plating > --- WEAPON (2) ------- Hammer > --- INVENTORY (15) --- Light Ion Engine Wheel Compact Wheel Heat Sink High-capacity Matter Pod (200) Structural Scanner Structural Scanner Light Armor Plating Light Armor Plating Light Armor Plating Light Armor Plating Light Assault Rifle Light Cannon Grenade Launcher Peak State ------------ > --- POWER ------------ Light Ion Engine > --- PROPULSION ------- Light Treads Compact Wheel > --- UTILITY ---------- Large Storage Unit Sensor Array > --- WEAPON ----------- Small Laser Small Laser > --- INVENTORY -------- Light Ion Engine Light Treads Wheel Compact Wheel Small Matter Pod Light Armor Plating Light Armor Plating Light Armor Plating Light Assault Rifle Grenade Launcher [Rating: 8] Favorites ----------- Power Light Ion Engine Engine Light Ion Engine Propulsion Light Treads Treads Light Treads Leg Aluminum Leg Wheel Compact Wheel Utility Large Storage Unit Device Sensor Array Storage Large Storage Unit Protection Light Armor Plating Weapon Small Laser Energy Gun Small Laser Ballistic Gun Light Assault Rifle Launcher Grenade Launcher Impact Weapon Hammer Build | -11 -10 -10 ------- Run | Yrd Mat Sub Slots Evolved . | . . . Power . | . . . Propulsion . | . . . Utility . | . . . Weapon . | . . . Parts Attached 12 | . 10 2 Power . | . . . Engine . | . . . Core . | . . . Reactor . | . . . Propulsion 4 | . 4 . Treads 2 | . 2 . Leg . | . . . Wheel 2 | . 2 . Hover . | . . . Flight . | . . . Utility 5 | . 3 2 Device 2 | . 2 . Storage 1 | . 1 . Processor . | . . . Hackware . | . . . Protection 2 | . . 2 Artifact . | . . . Weapon 3 | . 3 . Energy Gun 1 | . 1 . Energy Cannon . | . . . Ballistic Gun . | . . . Ballistic Cannon . | . . . Launcher 1 | . 1 . Special Weapon . | . . . Impact Weapon 1 | . 1 . Slashing Weapon . | . . . Piercing Weapon . | . . . Special Melee Weapon . | . . . Unidentified Prototypes . | . . . Parts Lost 8 | . 4 4 Power 1 | . 1 . Propulsion 3 | . 1 2 Utility 2 | . 1 1 Weapon 2 | . 1 1 Highest Loss Streak 4 | . 2 4 To Critical Strikes . | . . . Average Backups 13 | 6 13 15 Power 1 | 1 1 1 Propulsion 2 | 4 2 2 Utility 6 | . 6 9 Weapon 2 | 1 2 3 Tool/Special . | . . . Unused Backups 19 | . 7 12 Power 2 | . 1 1 Propulsion 4 | . 2 2 Utility 9 | . 2 7 Weapon 4 | . 2 2 Tool/Special . | . . . Average Slot Usage (%) 92 | . 93 73 Engine 10 | . 10 . Treads 13 | . 13 14 Leg 1 | . 1 . Wheel 13 | . 13 9 Device 11 | . 11 9 Storage 14 | . 14 14 Energy Gun 20 | . 20 7 Impact Weapon 7 | . 7 14 Peak Build Rating 8 | 6 8 7 Average Rating 7 | 6 7 5 On Entrance 6 | 6 6 7 Naked Turns . | . . . Heaviest Build 27 | 10 27 25 Greatest Support 20 | 20 20 20 Greatest Overweight (x) 2 | . 2 2 Average Overweight (x) 1 | . 1 1 Largest Inventory Capacity 15 | 8 15 15 Average Capacity 14 | 8 14 15 Most Carried 15 | 6 15 15 Average Carried 13 | 6 13 15 Final Capacity 15 | 8 15 15 Final Carried 15 | 6 15 14 Class Distribution -------------------- 100% | Mutant Dominant Class ---------------- Mutant | -10/Materials Mutant | -10/Subcaves Resources | -11 -10 -10 ----------- Run | Yrd Mat Sub Matter Collected 568 | 200 368 . Remotely . | . . . Salvage Created 701 | . 668 33 Parts 30 | . 30 . Haulers Intercepted 1 | . 1 . Recyclers Shooed . | . . . Parts Field Recycled . | . . . Retrieved Matter . | . . . Parts Self-Destructed . | . . . Prevented . | . . . Kills | -11 -10 -10 ------- Run | Yrd Mat Sub Combat Hostiles Destroyed 17 | . 16 1 Melee 6 | . 6 . Guns 3 | . 3 . AOE 2 | . 2 . Classes Destroyed 8 | . 7 1 Worker 4 | . 4 . Tunneler 2 | . 2 . Hauler 1 | . 1 . Operator 1 | . 1 . Watcher 2 | . 2 . Swarmer 6 | . 6 . Grunt 10 | . 10 . Subdweller 1 | . . 1 Best Kill Streak 4 | . 4 1 Combat Bots Only 3 | . 3 1 Max Kills in Single Turn 2 | . 2 1 Gunslinging . | . . . Exploded 2 | . 2 . Melee 1 | . 1 . Uniques/NPCs Destroyed . | . . . Combat | -11 -10 -10 -------- Run | Yrd Mat Sub Hostile Shots Fired 91 | . 66 25 Missed 22 | . 18 4 Hits 69 | . 48 21 Projectile 69 | . 48 21 Critical Strikes 1 | . . 1 Damage Taken 1067 | . 524 543 Core 273 | . 90 183 Absorbed by Shields . | . . . Core Remaining (%) 100 | 100 . . Volleys Fired 28 | . 28 . Largest 2 | . 2 . Hottest 80 | . 80 . Shots Fired 54 | . 54 . Gun 52 | . 52 . Cannon . | . . . Launcher 2 | . 2 . Special . | . . . Kinetic . | . . . Thermal 52 | . 52 . Explosive 2 | . 2 . Electromagnetic . | . . . Robot Hit Streak 7 | . 7 . Robot Miss Streak 3 | . 3 . Penetration Max . | . . . Secondary Targets . | . . . Shots Hit Robots 82 | . 71 11 Core Hits 21 | . 21 . Critical Kills 1 | . 1 . Critical Parts Destroyed 12 | . 11 1 Critical Strikes 14 | . 12 2 Smash 14 | . 12 2 Melee Attacks 61 | . 50 11 Impact 61 | . 50 11 Slashing . | . . . Piercing . | . . . Sneak Attacks 8 | . 8 . Combat Hostiles . | . . . Follow-up Attacks . | . . . Damage Inflicted 2049 | . 1775 274 Guns 342 | . 342 . Cannons . | . . . Explosions 118 | . 118 . Melee 1589 | . 1315 274 Ramming . | . . . Kinetic . | . . . Thermal 342 | . 342 . Explosive 118 | . 118 . Electromagnetic . | . . . Impact 1589 | . 1315 274 Slashing . | . . . Piercing . | . . . Highest Corruption . | . . . Average Corruption . | . . . Corruption Purged . | . . . Corruption Blocked . | . . . Overload Shots . | . . . Overflow Damage 504 | . 474 30 Projectiles . | . . . Explosions 1 | . 1 . Melee 503 | . 473 30 Knockbacks 7 | . 7 . Impact 7 | . 7 . Kinetic . | . . . Secondary . | . . . Self-Inflicted Damage . | . . . Shots . | . . . Rammed . | . . . Targets Rammed . | . . . Kicked . | . . . Crushed . | . . . Highest Temperature 72 | . 72 . Average Temperature 23 | . 23 . Received Heat Transfer 357 | . 240 117 Siege Activations . | . . . Martial Activations . | . . . Shielding Activations . | . . . Robots Disrupted . | . . . Combat Hostiles . | . . . Robots Corrupted 11 | . 10 1 Combat Hostiles 6 | . 5 1 Parts Fried 9 | . 9 . Impact Corruptions 25 | . 23 2 Robots Melted . | . . . Combat Hostiles . | . . . Parts Melted 1 | . 1 . Heat Transferred 775 | . 775 . Parts Sabotaged . | . . . Parts Stolen . | . . . Parts Stripped . | . . . Power Chain Reactions . | . . . Alert | -11 -10 -10 ------- Run | Yrd Mat Sub Maximum Alert Level 1 | . 1 . Low Security (%) 67 | 100 66 . Level 1 32 | . 33 . Level 2 . | . . . Level 3 . | . . . Level 4 . | . . . Level 5 . | . . . High Security . | . . . Max Security . | . . . Peak Influence 252 | . 252 . Initial . | . . . Average 112 | . 113 . Influence Increases 586 | . 586 . Destroy 0b10 Robot/C 320 | . 320 . Destroy 0b10 Robot/NC 50 | . 50 . Destroy Leader 76 | . 76 . Successful Hack 52 | . 52 . Select Force Hacks 60 | . 60 . Destroy Structure 13 | . 13 . Lose Combat Pursuer 15 | . 15 . Influence Decreases 534 | . 370 164 Entered New Map 104 | . . 104 Time Decay 350 | . 330 20 Lost Part 80 | . 40 40 Squads Dispatched 3 | . 3 . Investigation 2 | . 2 . Extermination . | . . . Reinforcement 1 | . 1 . Assault . | . . . Garrison . | . . . Intercept . | . . . Searches Triggered . | . . . Construction Impeded . | . . . Haulers Reinforced . | . . . Active Scanning Responses . | . . . Cargo Convoy Interrupts . | . . . Stealth | -11 -10 -10 --------- Run | Yrd Mat Sub Distress Signals 1 | . 1 . Communications Jammed . | . . . Distress Signals . | . . . Times Spotted 25 | . 23 2 Peak Tracking Total 4 | . 4 3 Tactical Retreats 1 | . 1 . Traps | -11 -10 -10 ------- Run | Yrd Mat Sub Traps Triggered . | . . . Indirectly . | . . . Trap Hack Attempts . | . . . Triggered . | . . . Disarmed . | . . . Reprogrammed . | . . . Reused . | . . . Traps Extracted . | . . . Installed . | . . . Triggered . | . . . Machines | -11 -10 -10 ---------- Run | Yrd Mat Sub Machines Disabled . | . . . Max in Single Turn . | . . . Machines Repaired . | . . . Machines Dismantled . | . . . Machines Sabotaged . | . . . Overloaded Fab Kills . | . . . Hacking | -11 -10 -10 --------- Run | Yrd Mat Sub Machines Accessed 10 | . 10 . Terminals 8 | . 8 . Fabricators . | . . . Repair Stations . | . . . Recycling Units 2 | . 2 . Scanalyzers . | . . . Garrison Access . | . . . Total Hacks 45 | . 45 . Successful 25 | . 25 . Failed 20 | . 20 . Catastrophic 2 | . 2 . Database Lockouts . | . . . Manual 34 | . 34 . Terminals 41 | . 41 . Fabricators . | . . . Repair Stations . | . . . Recycling Units 4 | . 4 . Scanalyzers . | . . . Garrison Access . | . . . Terminal Hacks 14 | . 14 . Robot Analysis 3 | . 3 . Prototype ID Bank 6 | . 6 . Branch Access Points 1 | . 1 . Hauler Manifests 1 | . 1 . Registered Components 1 | . 1 . Zone Layout 2 | . 2 . Fabricator Hacks . | . . . Repair Station Hacks . | . . . Recycling Unit Hacks . | . . . Scanalyzer . | . . . Garrison Access Hacks . | . . . Unauthorized Hacks 11 | . 11 . Terminals 9 | . 9 . Botnet 3 | . 3 . Skim 6 | . 6 . Fabricators . | . . . Repair Stations . | . . . Recycling Units 2 | . 2 . Tunnel 2 | . 2 . Scanalyzers . | . . . Garrison Access . | . . . Data Cores Recovered . | . . . Used . | . . . Hacking Detections 9 | . 9 . Full Trace Events . | . . . Feedback Events . | . . . Feedback Blocked . | . . . Robot Schematics Acquired . | . . . Robots Built . | . . . Authchips . | . . . Time . | . . . Total Robot Build Rating . | . . . Part Schematics Acquired . | . . . Parts Built . | . . . Authchips . | . . . Time . | . . . Total Part Build Rating . | . . . Parts Repaired . | . . . Time . | . . . Parts Recycled . | . . . Recycled Matter . | . . . Retrieved Matter . | . . . Retrieved Components . | . . . Parts Scanalyzed . | . . . Part Schematics Acquired . | . . . Parts Damaged . | . . . Bothacking | -11 -10 -10 ------------ Run | Yrd Mat Sub Used RIF Installer . | . . . Robots Hacked . | . . . Non-combat . | . . . Combat . | . . . Robot Hacks Applied . | . . . Relay Couplers Released . | . . . Fabnet Peak Effective % . | . . . Robots Rewired . | . . . Allies Hacked . | . . . Hacks Repelled . | . . . Allies | -11 -10 -10 -------- Run | Yrd Mat Sub Total Allies . | . . . Largest Group . | . . . Highest-Rated Group . | . . . Highest-Rated Ally . | . . . Total Orders . | . . . Ally Attacks . | . . . Total Damage . | . . . Kills . | . . . Allies Corrupted . | . . . Allies Melted . | . . . Intel | -11 -10 -10 ------- Run | Yrd Mat Sub Active Infowar (turns) 1037 | . 1009 28 Sensors 959 | . 959 . Structural 78 | . 50 28 Robot Analysis Total 3 | . 3 . Derelict Logs Recovered 1 | . . 1 Drone Launches . | . . . Drone Recoveries . | . . . Exploration | -11 -10 -10 ------------- Run | Yrd Mat Sub Turns Passed 1273 | 3 1219 51 Spaces Moved 751 | 3 732 16 Core . | . . . Treads 1 | . . 1 Legs 40 | 3 37 . Wheels 710 | . 695 15 Hover . | . . . Flight . | . . . Fastest Speed 110 | 120 110 110 Average Speed 114 | 120 113 118 Slowest Speed 240 | 120 190 240 Overloaded Moves . | . . . Propulsion Burnouts . | . . . Robots Hopped . | . . . Potential Cave-ins . | . . . Cave-ins Triggered . | . . . Exploration Rate (%) 33 | 2 96 2 Regions Visited 2 Branch Regions 1 Pre-discovered Areas 4 | . 4 . Known Exits Taken 1 | . 1 . Unknown Exits Taken 1 | 1 . . Scrap Searched . | . . . Spaces Dug 10 | . 10 . Terrain Destroyed 13 | . 13 . Melee . | . . . Projectile . | . . . AOE 13 | . 13 . Terrain Rammed . | . . . Walls Destroyed . | . . . Machines Disabled . | . . . Actions | -11 -10 -10 --------- Run | Yrd Mat Sub Total 1005 | 2 974 29 Wait 132 | . 132 . Move 749 | 2 731 16 Hop . | . . . Pick Up 15 | . 15 . Fast Attach 4 | . 4 . Attach 5 | . 4 1 Detach . | . . . Swap 5 | . 4 1 Drop 6 | . 6 . Fire 28 | . 28 . Melee 61 | . 50 11 Ram . | . . . Kick . | . . . Crush . | . . . Escape Stasis . | . . . Rewire . | . . . Trap . | . . . Miscellaneous . | . . . Route ------- -11/Scrapyard -10/Materials (discovered 5 exits: [*Mat x3] / *Min / *Sub) -10/Subcaves (discovered 2 exits: Mat x2) History --------- Turn | Location | Event 1 | -11/Scrapyard | Discovered new exit (range 3) 4 | -11/Scrapyard | Entered Materials 119 | -10/Materials | Discovered new exit (range 5) 282 | -10/Materials | Discovered new exit (range 5) 292 | -10/Materials | Identified exit to Mines 308 | -10/Materials | Build established: Mutant 502 | -10/Materials | Discovered new exit (range 15) 584 | -10/Materials | Learned Storage security intel 645 | -10/Materials | Identified exit to Subcaves 645 | -10/Materials | Learned location of 1 exit from Materials 739 | -10/Materials | Learned location of Subcaves (-10) 873 | -10/Materials | Learned location of Storage (-8) 1223 | -10/Materials | Entered Subcaves 1224 | -10/Subcaves | Identified exit to Materials 1238 | -10/Subcaves | Learned Materials stockpile data 1239 | -10/Subcaves | A Subdweller sparked back to life 1248 | -10/Subcaves | Core integrity fell below 50% 1265 | -10/Subcaves | Core integrity fell below 20% 1274 | -10/Subcaves | Destroyed by GV-GOL(R) with Subdweller Beam Cannon Last Messages --------------- 01207_ Acquired 10 matter. 01209_ K-01 Serf collects debris. LOCATION=SUBCAVES AMBIENT_HEAT=-10 GOAL=ESCAPE Loading 2 Materials entrances... 01238_ Acquired derelict log, extracted data. Data stored: Materials stockpile data. 01239_ Sneak attack on EJ-DF1(R). 01239_ EJ-DF1(R) creaks and sparks as it begins to move. 01245_ Sml. Laser destroyed. 01254_ Wheel destroyed. 01258_ Destroyed Sub. Optics. 01258_ EJ-DF1(R) system corrupted by crushing effect. 01261_ EJ-DF1(R) suffers critical hit (Smash). 01266_ Destroyed Sub. Machine Gun. 01266_ EJ-DF1(R) system corrupted by crushing effect. 01267_ EJ-DF1(R) system terminally corrupted. 01270_ Lgt. Treads destroyed. 01272_ Lgt. Armor Plating destroyed. Map ----- +----------------------------------------------------+ | ?????????????????????????????????????????????????? | | ?????????????????????????????????????????????????? | | ?????????????????????????????????????????????????? | | ?????????????????????????????????????????????????? | | ?????????????????????????????????????????????????? | | ?????????????????????????????????????????????????? | | ?????????????????????????????????????????????????? | | ?????????????????????????????????????????????????? | | ?????????????????????????????????????????????????? | | ?????????????????????????????????????????????????? | | ?????????????????????????????????????????????????? | | ?????????????????????????????????????????????????? | | ?????????????????????????????????????????????????? | | ????????????????????? ??????????????????????????? | | ????????????????????? ?????????????????????????? | | ?????????????????? ? ?????????????????????????? | | ?????????????????# ? ????????????????????????? | | ?????????????????## ????????????????????????? | | ?????????????????### ## ???????????????????????? | | ??????????????????## " ####???????????????????? | | ??????????????????# #####??????????????????? | | ????????????????????? ####?????????????????? | | ??????????????????????? & ####????????????????? | | ?????????????????????" # ####?#######???????? | | ???????????????????# <#### ##############????? | | ???????????????????## #&%@R ##### #####????? | | ???????????????????## #### ##????? | | ???????????????????#### #### # ????? | | ???????????????????####;######## ##### | | ?????????????????????################## | | ??????????????????????????????#####?###### # # # | | ?????????????????????????????????????############# | | ?????????????????????????????????????????########? | | ?????????????????????????????????????????????????? | | ?????????????????????????????????????????????????? | | ?????????????????????????????????????????????????? | | ?????????????????????????????????????????????????? | | ?????????????????????????????????????????????????? | | ?????????????????????????????????????????????????? | | ?????????????????????????????????????????????????? | | ?????????????????????????????????????????????????? | | ?????????????????????????????????????????????????? | | ?????????????????????????????????????????????????? | | ?????????????????????????????????????????????????? | | ?????????????????????????????????????????????????? | | ?????????????????????????????????????????????????? | | ?????????????????????????????????????????????????? | | | | | | | +----------------------------------------------------+ Best States ------------- Heat Dissipation 25 Energy Generation 10 Energy Capacity 125 Matter Stores 300 Matter Capacity 300 Sight Range 16 Robot Scan Range 14 Terrain Scan Density 10 Armor Coverage 150 Evasion (%) 55 Recoil Reduction 1 Item Schematics ----------------- None Robot Schematics ------------------ None Fabricated ------------ Nothing Repaired ---------- Nothing Alien Tech Used ----------------- None Achievements -------------- None Challenges ------------ None Game ------ Seed PropulsionSalvageCompressor Manual? 0 Play Time 00:13:53 Cumulative 48.3 hours Start 2025.10.18 @ 15:55:05 End 2025.10.18 @ 16:08:21 Sessions 1 Manual Loads 0 Difficulty Rogue Special Mode None Game No. 88 Rogue 88 Adventurer 0 Explorer 0 Win Type - Total 0 Types 0/0/0/0/0/0/0/0/0/0 Lore% 41 Gallery% 45 Achievement% 59 Wizard Run 0 Options --------- Layout 0 ASCII 0 Keyboard 0 Movement Numpad Keybinds 0 Fullscreen 1 Font 18/SmallcapsGlow Map View 76x50 Zoom Use 0% Tactical HUD 1 Map Filters NONE Filters NONE Steam 1 RUN: 1b1a5583-254a-4409-a352-fb41eaf023fe